bitfinex-derivatives/quotes_BTCF0:USTF0_20240907
["timestamp","ask_amount","ask_price","bid_price","bid_amount"]
[1725721326411,0.004,54667.0,54666.0,0.281469]
[1725721326616,0.0467,54670.0,54668.0,0.091464]
[1725721326812,0.0467,54670.0,54666.0,0.19]
[1725721326813,0.005,54667.0,54666.0,0.19]
[1725721327011,0.01,54667.0,54666.0,0.19]
[1725721327723,0.005,54667.0,54666.0,0.19]
[1725721327907,0.005,54667.0,54666.0,0.281469]
[1725721328307,0.0587,54670.0,54669.0,0.091464]
[1725721329418,0.0467,54670.0,54669.0,0.091464]
[1725721329716,0.281453,54676.0,54673.0,0.091457]
[1725721330416,0.29934721,54676.0,54673.0,0.091457]
[1725721330819,0.29934721,54676.0,54670.0,0.0452]
[1725721330820,0.10934721,54676.0,54670.0,0.0452]
[1725721331230,0.11234721,54676.0,54670.0,0.0452]
[1725721331912,0.11634721,54676.0,54670.0,0.0452]
[1725721332527,0.11334721,54676.0,54674.0,0.091454]
[1725721332712,0.11034721,54676.0,54674.0,0.091454]
[1725721333324,0.11034721,54676.0,54675.0,0.091454]
[1725721333822,0.11534721,54676.0,54675.0,0.091454]
[1725721334916,0.12034721,54676.0,54675.0,0.091454]
[1725721335118,0.11534721,54676.0,54675.0,0.091454]
[1725721335515,0.11034721,54676.0,54675.0,0.091454]
[1725721335725,0.30034721,54676.0,54675.0,0.091454]
[1725721337912,0.091459,54672.0,54671.0,0.091459]
[1725721338113,0.281459,54672.0,54671.0,0.091459]
[1725721339121,0.091464,54669.0,54667.0,0.091466]
[1725721339348,0.137965,54668.0,54667.0,0.091466]
[1725721339523,0.327965,54668.0,54667.0,0.091466]
[1725721340316,0.323965,54668.0,54667.0,0.091466]
[1725721341029,0.133965,54668.0,54667.0,0.091466]
[1725721341429,0.133965,54668.0,54667.0,0.092466]
[1725721342324,0.323965,54668.0,54667.0,0.092466]
[1725721344422,0.323965,54668.0,54667.0,0.001]
[1725721344423,0.34174945,54668.0,54667.0,0.001]
[1725721351733,0.15174945,54668.0,54667.0,0.092467]
[1725721352328,0.34174945,54668.0,54667.0,0.001]
[1725721352635,0.091479,54661.0,54660.0,0.091478]
[1725721352828,0.25028445,54668.0,54656.0,0.091484]
[1725721352829,0.091484,54657.0,54656.0,0.091484]
[1725721354123,0.19,54659.0,54658.0,0.091482]
[1725721355724,0.10954994,54666.0,54658.0,0.192]
[1725721356034,0.133966,54668.0,54667.0,0.091467]
[1725721357224,0.0425,54668.0,54667.0,0.091467]
[1725721357937,0.0505,54668.0,54667.0,0.091467]
[1725721358132,0.141965,54668.0,54667.0,0.091467]
[1725721358438,0.141965,54668.0,54667.0,0.092467]
[1725721358636,0.150965,54668.0,54667.0,0.092467]
[1725721358842,0.017,54668.0,54667.0,0.183934]
[1725721359041,0.38473781,54682.0,54667.0,0.183934]
[1725721359042,0.0481,54679.0,54668.0,0.091465]
[1725721359340,0.0481,54679.0,54671.0,0.19]
[1725721359527,0.0481,54679.0,54672.0,0.0918]
[1725721359840,0.0481,54679.0,54672.0,0.1465609]
[1725721360037,0.0481,54679.0,54678.0,0.091449]
[1725721360238,0.0541,54679.0,54678.0,0.091449]
[1725721360739,0.16364994,54679.0,54678.0,0.091449]
[1725721361333,0.17064994,54679.0,54678.0,0.092449]
[1725721361546,0.16464994,54679.0,54678.0,0.092449]
[1725721361939,0.007,54679.0,54678.0,0.373898]
[1725721362642,0.007,54679.0,54678.0,0.001]
[1725721362843,0.098447,54679.0,54678.0,0.001]
[1725721363246,0.20799694,54679.0,54678.0,0.001]
[1725721363445,0.150647,54679.0,54678.0,0.002]
[1725721363640,0.26019694,54679.0,54678.0,0.002]
[1725721364046,0.150647,54679.0,54678.0,0.002]
[1725721365048,0.0592,54679.0,54678.0,0.002]
[1725721365237,0.0592,54679.0,54678.0,0.093449]
[1725721365238,0.014,54679.0,54678.0,0.093449]
[1725721369340,0.014,54679.0,54678.0,1.242129]
[1725721370057,0.014,54679.0,54678.0,1.54113483]
[1725721370248,0.014,54679.0,54678.0,1.44968583]
[1725721370555,0.5165,54693.0,54678.0,1.44968583]
[1725721370556,0.091428,54691.0,54688.0,0.091431]
[1725721370755,0.091428,54691.0,54689.0,0.091429]
[1725721370944,0.091428,54691.0,54684.0,0.19]
[1725721370945,0.138121,54695.0,54694.0,0.091422]
[1725721371249,0.138121,54695.0,54684.0,0.94]
[1725721371250,0.0910562,54700.0,54691.0,0.19]
[1725721371455,0.01810913,54702.0,54697.0,0.091416]
[1725721371456,0.0910562,54701.0,54697.0,0.091416]
[1725721371755,0.281411,54701.0,54697.0,0.091416]
[1725721372141,0.281411,54701.0,54698.0,0.091415]
[1725721372647,0.01,54700.0,54698.0,0.091415]
[1725721372849,0.01,54700.0,54691.0,0.191]
[1725721372850,0.01,54700.0,54695.0,0.09142]
[1725721373046,0.19,54696.0,54695.0,0.09142]
[1725721374151,0.189,54696.0,54691.0,0.091427]
[1725721374349,0.19,54692.0,54691.0,0.091427]
[1725721374552,0.189,54692.0,54691.0,0.091427]
[1725721374751,0.188,54692.0,54691.0,0.091427]
[1725721375143,0.091433,54688.0,54686.0,0.091434]
[1725721375357,0.19,54687.0,54686.0,0.091434]
[1725721375554,0.189,54687.0,54686.0,0.091434]
[1725721375760,0.280433,54687.0,54686.0,0.091434]
[1725721376557,0.091433,54687.0,54686.0,0.091434]
[1725721377258,0.095433,54687.0,54686.0,0.091434]
[1725721377557,0.009,54687.0,54686.0,0.091434]
[1725721378751,0.091439,54684.0,54679.0,0.20815575]
[1725721380062,0.091439,54684.0,54683.0,0.09144]
[1725721381461,0.002,54684.0,54683.0,0.09144]
[1725721382056,0.004,54684.0,54683.0,0.68954]
[1725721382357,0.004,54684.0,54683.0,0.78098]
[1725721383757,0.004,54684.0,54683.0,0.23238]
[1725721384063,0.281425,54692.0,54687.0,0.091433]
[1725721384374,0.091427,54691.0,54687.0,0.091433]
[1725721384861,0.001,54684.0,54683.0,0.30944]
[1725721385169,0.001,54684.0,54683.0,0.38688]
[1725721385355,0.0485,54695.0,54692.0,0.091425]
[1725721385554,0.15795661,54695.0,54692.0,0.091425]
[1725721385755,0.0485,54695.0,54692.0,0.091425]
[1725721385949,0.139921,54695.0,54692.0,0.091425]
[1725721386256,0.24937761,54695.0,54692.0,0.091425]
[1725721386760,0.20087961,54694.0,54692.0,0.091425]
[1725721386952,0.10945661,54693.0,54692.0,0.091425]
[1725721387150,0.091423,54693.0,54691.0,0.091426]
[1725721387358,0.29936199,54692.0,54691.0,0.091426]
[1725721387656,0.19,54692.0,54687.0,0.105433]
[1725721387861,0.0485,54695.0,54687.0,0.105433]
[1725721387862,0.19,54688.0,54687.0,0.105433]
[1725721388065,0.19,54688.0,54687.0,0.091433]
[1725721388066,0.088432,54688.0,54687.0,0.091433]
[1725721388259,0.1093691,54689.0,54688.0,0.091432]
[1725721388564,0.1093691,54694.0,54693.0,0.091423]
[1725721388768,0.10940408,54694.0,54693.0,0.091423]
[1725721388957,0.0485,54695.0,54694.0,0.091422]
[1725721388958,0.15790408,54695.0,54694.0,0.091422]
[1725721389158,0.0485,54695.0,54694.0,0.091422]
[1725721391072,0.0525,54695.0,54694.0,0.091422]
[1725721391263,0.0545,54695.0,54694.0,0.091422]
[1725721391668,0.0535,54695.0,54694.0,0.091422]
[1725721391967,0.14292,54695.0,54694.0,0.091422]
[1725721392266,0.13992,54695.0,54694.0,0.094422]
[1725721393757,0.13992,54695.0,54694.0,0.002]
[1725721393962,0.13992,54695.0,54694.0,0.003]
[1725721394164,0.24934744,54695.0,54694.0,0.003]
[1725721394470,0.24934744,54695.0,54694.0,0.001]
[1725721394664,0.24934744,54695.0,54694.0,0.002]
[1725721395065,0.24934744,54695.0,54694.0,0.001]
[1725721395066,0.25034744,54695.0,54694.0,0.001]
[1725721395273,0.091426,54692.0,54691.0,0.091427]
[1725721395462,0.281426,54692.0,54691.0,0.091427]
[1725721397157,0.091427,54691.0,54685.0,0.0547609]
[1725721397356,0.281435,54686.0,54684.0,0.0547609]
[1725721398172,0.19,54686.0,54685.0,0.091437]
[1725721399860,0.281435,54686.0,54685.0,0.091437]
[1725721400771,0.281435,54686.0,54685.0,0.095437]
[1725721400973,0.281435,54686.0,54685.0,0.097437]
[1725721401477,0.281435,54686.0,54685.0,0.096437]
[1725721401667,0.091435,54686.0,54685.0,0.096437]
[1725721401863,0.19,54690.0,54689.0,0.09143]
[1725721402065,0.091424,54693.0,54686.0,0.0484]
[1725721402270,0.1095297,54695.0,54688.0,0.091432]
[1725721402463,0.091419,54696.0,54688.0,0.091432]
[1725721402464,0.1095297,54694.0,54688.0,0.091432]
[1725721402774,0.10959569,54694.0,54688.0,0.091432]
[1725721402963,0.10959569,54694.0,54693.0,0.091423]
[1725721403163,0.2076567,54697.0,54696.0,0.091418]
[1725721404567,0.2545567,54697.0,54696.0,0.091418]
[1725721404771,0.2595567,54697.0,54696.0,0.092418]
[1725721405361,0.3609737,54697.0,54696.0,0.093418]
[1725721405967,0.55184584,54697.0,54696.0,0.093418]
[1725721406168,0.56899883,54697.0,54696.0,0.002]
[1725721406363,0.40574335,54697.0,54696.0,0.002]
[1725721406571,0.55190548,54697.0,54696.0,0.002]
[1725721406886,0.40574335,54697.0,54696.0,0.002]
[1725721407673,0.40574335,54697.0,54696.0,0.093418]
[1725721408268,0.55190548,54697.0,54696.0,0.093418]
[1725721408469,0.40574335,54697.0,54696.0,0.093418]
[1725721409072,0.05976965,54697.0,54696.0,0.093418]
[1725721409380,0.015,54697.0,54696.0,0.093418]
[1725721409569,0.015,54697.0,54696.0,0.283418]
[1725721409877,0.015,54697.0,54696.0,1.033418]
[1725721411274,0.015,54697.0,54696.0,1.128918]
[1725721413586,0.015,54697.0,54696.0,0.938918]
[1725721414172,0.006,54697.0,54696.0,0.945918]
[1725721414671,0.006,54697.0,54696.0,1.135918]
[1725721414875,0.001,54697.0,54696.0,0.384918]
[1725721415077,0.001,54697.0,54696.0,0.202918]
[1725721415685,0.191,54697.0,54696.0,0.155118]
[1725721415877,0.191,54697.0,54696.0,0.107418]
[1725721416184,0.282417,54697.0,54696.0,0.016]
[1725721417179,0.281417,54697.0,54696.0,0.013]
[1725721417671,0.286417,54697.0,54696.0,0.005]
[1725721418066,0.09142,54695.0,54693.0,0.091422]
[1725721418274,0.19,54694.0,54693.0,0.091422]
[1725721418674,0.19,54694.0,54687.0,0.01747882]
[1725721418675,0.19,54694.0,54690.0,0.091427]
[1725721418875,0.19,54691.0,54690.0,0.091427]
[1725721419582,0.281427,54691.0,54690.0,0.091427]
[1725721420978,0.281427,54691.0,54690.0,0.092427]
[1725721421781,0.281427,54691.0,54690.0,0.094427]
[1725721422180,0.283427,54691.0,54690.0,0.093427]
[1725721422679,0.283427,54691.0,54690.0,0.002]
[1725721423990,0.284427,54691.0,54689.0,0.091429]
[1725721424378,0.091428,54690.0,54689.0,0.091429]
[1725721424779,0.003,54691.0,54690.0,0.091428]
[1725721425178,0.001,54691.0,54690.0,0.091428]
[1725721425585,0.091424,54693.0,54684.0,0.20811437]
[1725721425889,0.091424,54693.0,54690.0,0.091428]
[1725721425890,0.002,54691.0,54690.0,0.091428]
[1725721427384,0.003,54691.0,54690.0,0.091428]
[1725721430481,0.002,54691.0,54690.0,0.091428]
[1725721431086,0.091421,54695.0,54694.0,0.091422]
[1725721432093,0.09141,54701.0,54692.0,0.19]
[1725721432285,0.005,54695.0,54693.0,0.0477]
[1725721433683,0.009,54695.0,54694.0,0.091422]
[1725721434292,0.004,54695.0,54694.0,0.091422]
[1725721434785,0.008,54695.0,54694.0,0.091422]
[1725721434993,0.008,54695.0,54694.0,0.2375791]
[1725721435386,0.008,54695.0,54694.0,0.182844]
[1725721435387,0.003,54695.0,54694.0,0.182844]
[1725721435595,0.005,54695.0,54694.0,0.182844]
[1725721437090,0.003,54695.0,54694.0,0.182844]
[1725721437282,0.005,54695.0,54694.0,0.182844]
[1725721441699,0.005,54695.0,54694.0,0.091422]
[1725721442287,0.091425,54692.0,54683.0,0.09144]
[1725721442794,0.0483,54694.0,54683.0,0.09144]
[1725721442995,0.005,54695.0,54694.0,0.091422]
[1725721443393,0.003,54695.0,54694.0,0.091422]
[1725721443593,0.1578798,54705.0,54703.0,0.091406]
[1725721444387,0.091405,54704.0,54703.0,0.091406]
[1725721448799,0.0483,54705.0,54696.0,0.05472398]
[1725721448996,0.0483,54705.0,54704.0,0.091405]
[1725721451000,0.0513,54705.0,54704.0,0.091405]
[1725721451919,0.142703,54705.0,54704.0,0.091405]
[1725721456909,0.142703,54705.0,54694.0,0.01836223]
[1725721457115,0.19,54695.0,54692.0,0.00092]
[1725721457304,0.19,54695.0,54687.0,0.50721576]
[1725721457305,0.049,54694.0,54687.0,0.34374936]
[1725721457607,0.049,54694.0,54693.0,0.091423]
[1725721458113,0.033,54694.0,54693.0,0.091423]
[1725721458812,0.033,54694.0,54693.0,0.100423]
[1725721459897,0.124422,54694.0,54693.0,0.100423]
[1725721460208,1.364364,54694.0,54693.0,0.009]
[1725721460410,1.364364,54694.0,54693.0,0.013]
[1725721460609,1.364364,54694.0,54693.0,0.004]
[1725721461015,0.091432,54688.0,54687.0,0.34282936]
[1725721461215,0.281432,54688.0,54684.0,0.091437]
[1725721461514,0.19,54688.0,54684.0,0.091437]
[1725721461820,0.091435,54686.0,54684.0,0.091437]
[1725721462206,0.087435,54686.0,54684.0,0.091437]
[1725721462404,0.087435,54686.0,54685.0,0.091437]
[1725721464015,0.083435,54686.0,54685.0,0.091437]
[1725721464419,0.10279966,54686.0,54685.0,0.097437]
[1725721464809,0.10379966,54686.0,54685.0,0.103437]
[1725721474217,0.02036466,54686.0,54685.0,0.103437]
[1725721477121,0.11179966,54686.0,54685.0,0.103437]
[1725721481527,0.11079966,54686.0,54685.0,0.102437]
[1725721481724,0.091435,54686.0,54685.0,0.101437]
[1725721483216,0.091435,54686.0,54685.0,0.098437]
[1725721483426,0.091435,54686.0,54685.0,0.095437]
[1725721483725,0.091435,54686.0,54685.0,0.094437]
[1725721484322,0.091435,54686.0,54685.0,0.093437]
[1725721484829,0.091435,54686.0,54685.0,0.092437]
[1725721485022,0.091435,54686.0,54685.0,0.095437]
[1725721485333,0.191435,54686.0,54685.0,0.095437]
[1725721486120,0.01801215,54688.0,54687.0,0.091433]
[1725721486417,0.0462,54699.0,54686.0,0.0475]
[1725721486418,0.14203528,54694.0,54686.0,0.0475]
[1725721486732,0.1,54693.0,54688.0,0.05472398]
[1725721486932,0.1,54693.0,54687.0,0.80564398]
[1725721487121,0.1,54693.0,54688.0,0.05472398]
[1725721487315,0.1,54693.0,54692.0,0.091425]
[1725721490127,0.1,54693.0,54688.0,0.05972398]
[1725721490128,1.24852,54693.0,54688.0,0.005]
[1725721490328,0.1,54689.0,54688.0,0.002]
[1725721490535,0.091434,54687.0,54685.0,0.091437]
[1725721490721,0.191435,54686.0,54685.0,0.091437]
[1725721491229,0.189435,54686.0,54685.0,0.091437]
[1725721492034,0.191435,54686.0,54685.0,0.091437]
[1725721492922,0.193435,54686.0,54685.0,0.091437]
[1725721493636,0.195435,54686.0,54685.0,0.091437]
[1725721496034,0.197435,54686.0,54685.0,0.091437]
[1725721496632,0.192435,54686.0,54685.0,0.091437]
[1725721496832,0.195435,54686.0,54685.0,0.091437]
[1725721497426,0.192435,54686.0,54685.0,0.091437]
[1725721497625,0.193435,54686.0,54685.0,0.091437]
[1725721498232,0.192435,54686.0,54685.0,0.091437]
[1725721498431,0.194435,54686.0,54685.0,0.091437]
[1725721499831,0.195435,54686.0,54685.0,0.091437]
[1725721500426,0.21344716,54686.0,54685.0,0.091437]
[1725721502530,0.21344716,54686.0,54676.0,0.31551749]
[1725721502531,0.09145,54677.0,54676.0,0.05484342]
[1725721502836,0.09145,54677.0,54674.0,0.091454]
[1725721502837,0.091454,54675.0,54674.0,0.091454]
[1725721503338,0.091449,54678.0,54674.0,0.0729534]
[1725721503636,0.091449,54678.0,54675.0,0.0729534]
[1725721503832,0.091449,54678.0,54675.0,0.1182534]
[1725721504033,0.091449,54678.0,54676.0,0.0729534]
[1725721504339,0.091449,54678.0,54677.0,0.09145]
[1725721506043,0.091449,54678.0,54677.0,0.14626813]
[1725721506937,0.091449,54678.0,54677.0,0.14926813]
[1725721507137,0.091449,54678.0,54677.0,0.15126813]
[1725721508040,0.091449,54678.0,54677.0,0.09645]
[1725721509040,0.091443,54682.0,54677.0,0.05981813]
[1725721509239,0.091424,54693.0,54683.0,0.091439]
[1725721509240,0.091439,54684.0,54683.0,0.091439]
[1725721510233,0.01835136,54687.0,54680.0,0.05481813]
[1725721510435,0.091433,54688.0,54687.0,0.091433]
[1725721511545,0.1,54691.0,54684.0,0.0489]
[1725721511546,0.1,54691.0,54689.0,0.091429]
[1725721511739,0.091429,54690.0,54689.0,0.091429]
[1725721513441,0.100429,54690.0,54689.0,0.092429]
[1725721513648,0.100429,54690.0,54689.0,0.093429]
[1725721514358,0.111429,54690.0,54689.0,0.093429]
[1725721519151,0.211429,54690.0,54689.0,0.093429]
[1725721522242,0.02,54690.0,54689.0,0.093429]
[1725721529046,0.14590681,54701.0,54689.0,0.093429]
[1725721529047,0.47240681,54704.0,54689.0,1.25056]
[1725721529252,0.091412,54700.0,54699.0,0.091412]
[1725721529460,0.1,54700.0,54699.0,0.091412]
[1725721530851,0.109,54700.0,54699.0,0.092412]
[1725721531250,0.200412,54700.0,54699.0,0.093412]
[1725721531450,0.214412,54700.0,54699.0,0.093412]
[1725721536861,0.272712,54700.0,54699.0,0.093412]
[1725721537753,0.281402,54700.0,54699.0,0.093412]
[1725721539772,0.318652,54700.0,54699.0,0.093412]
[1725721543855,0.12724,54700.0,54699.0,0.093412]
[1725721544059,0.12724,54700.0,54699.0,0.193412]
[1725721544368,0.04594,54700.0,54699.0,1.524678]
[1725721544671,0.14590681,54713.0,54712.0,0.091392]
[1725721544870,0.0447567,54713.0,54712.0,0.091392]
[1725721545069,0.091378,54720.0,54719.0,0.091379]
[1725721545371,0.09138,54719.0,54717.0,0.46421319]
[1725721545572,0.09138,54719.0,54717.0,0.46329319]
[1725721546773,0.01749889,54720.0,54718.0,0.54828]
[1725721546970,0.1,54723.0,54719.0,0.09138]
[1725721547271,0.091378,54720.0,54719.0,0.09138]
[1725721548474,0.091381,54719.0,54717.0,0.37483019]
[1725721548857,0.091381,54719.0,54717.0,0.001]
[1725721548858,0.1,54718.0,54717.0,0.001]
[1725721549064,0.099,54718.0,54716.0,0.091385]
[1725721549371,0.191381,54719.0,54717.0,0.091383]
[1725721549771,0.191381,54719.0,54717.0,0.093383]
[1725721550368,0.191381,54719.0,54717.0,0.092383]
[1725721551665,0.191381,54719.0,54718.0,0.091382]
[1725721553072,0.191381,54719.0,54718.0,0.092382]
[1725721553976,0.191381,54719.0,54718.0,0.093382]
[1725721556071,0.091381,54719.0,54718.0,0.093382]
[1725721561579,0.136981,54719.0,54718.0,0.093382]
[1725721561770,0.228362,54719.0,54718.0,0.002]
[1725721562270,0.228362,54719.0,54710.0,0.091395]
[1725721562271,0.091393,54711.0,54710.0,0.091395]
[1725721562476,0.191393,54711.0,54710.0,0.091395]
[1725721563070,0.0456,54719.0,54713.0,0.09139]
[1725721563071,0.191389,54714.0,54713.0,0.09139]
[1725721564282,0.091384,54717.0,54716.0,0.091384]
[1725721564579,0.191384,54717.0,54716.0,0.091384]
[1725721565980,0.091378,54720.0,54719.0,0.09138]
[1725721566777,0.0481,54724.0,54722.0,0.091375]
[1725721566778,0.11747601,54723.0,54722.0,0.091375]
[1725721566985,0.1,54723.0,54722.0,0.091375]
[1725721567871,0.191373,54723.0,54722.0,0.091375]
[1725721569173,0.1,54723.0,54722.0,0.091375]
[1725721570180,0.1,54723.0,54722.0,0.092375]
[1725721571581,0.1,54723.0,54722.0,0.093375]
[1725721572984,0.01830752,54724.0,54723.0,0.091373]
[1725721573183,0.19137,54725.0,54724.0,0.091372]
[1725721573381,0.13777,54726.0,54725.0,0.09137]
[1725721573587,0.23777,54726.0,54725.0,0.09137]
[1725721573985,0.25556678,54726.0,54725.0,0.09137]
[1725721575185,0.25556678,54726.0,54725.0,0.09237]
[1725721575487,0.30031212,54726.0,54725.0,0.09237]
[1725721575686,0.25556678,54726.0,54725.0,0.09237]
[1725721576385,0.25556678,54726.0,54725.0,0.09337]
[1725721578777,0.25368278,54726.0,54725.0,0.09337]
[1725721579683,0.25368278,54726.0,54725.0,0.002]
[1725721583988,0.34505278,54726.0,54725.0,0.002]
[1725721585279,0.24505278,54726.0,54725.0,0.002]
[1725721585594,0.34505278,54726.0,54725.0,0.002]
[1725721587188,0.25368278,54726.0,54725.0,0.002]
[1725721589693,0.34505278,54726.0,54725.0,0.002]
[1725721591388,0.38980125,54726.0,54725.0,0.002]
[1725721591593,0.38980125,54726.0,54708.0,0.05481813]
[1725721591594,0.091397,54709.0,54708.0,0.05481813]
[1725721591797,0.091402,54706.0,54705.0,0.00092]
[1725721591981,0.191402,54706.0,54697.0,0.00188]
[1725721592295,0.095,54708.0,54698.0,0.1]
[1725721592296,0.1864,54708.0,54698.0,0.1]
[1725721592591,0.1,54706.0,54702.0,0.091407]
[1725721592786,0.091403,54706.0,54703.0,0.0471]
[1725721592997,0.0425,54708.0,54703.0,0.0471]
[1725721593179,0.0425,54708.0,54707.0,0.0914]
[1725721594509,0.091387,54715.0,54707.0,0.1]
[1725721594791,0.417874,54723.0,54719.0,0.091379]
[1725721594989,0.091374,54723.0,54720.0,0.091378]
[1725721595495,0.1,54721.0,54720.0,0.091378]
[1725721596090,0.1,54721.0,54720.0,0.093378]
[1725721596392,0.091375,54722.0,54720.0,0.093378]
[1725721596595,0.191377,54721.0,54720.0,0.002]
[1725721596979,0.199377,54721.0,54720.0,0.002]
[1725721597693,0.21652293,54721.0,54720.0,0.002]
[1725721597889,0.21652276,54721.0,54720.0,0.001]
[1725721598188,0.299754,54721.0,54720.0,0.002]
[1725721598389,0.299754,54721.0,54706.0,0.091401]
[1725721598390,0.3035,54720.0,54706.0,0.091401]
[1725721598594,0.091394,54711.0,54706.0,0.091401]
[1725721598792,0.091396,54710.0,54706.0,0.091401]
[1725721599690,0.091396,54710.0,54706.0,0.102401]
[1725721600889,0.091396,54710.0,54707.0,0.091399]
[1725721601284,0.091396,54710.0,54709.0,0.091397]
[1725721601494,0.091396,54710.0,54706.0,0.003]
[1725721601495,0.281389,54714.0,54710.0,0.091395]
[1725721601792,0.091389,54714.0,54707.0,0.75]
[1725721602184,0.01758398,54717.0,54711.0,0.19]
[1725721602390,0.091379,54720.0,54717.0,0.091383]
[1725721604584,0.19,54722.0,54720.0,0.091377]
[1725721604790,0.281376,54722.0,54712.0,0.1406]
[1725721604992,0.005,54720.0,54718.0,0.091381]
[1725721605188,0.01,54720.0,54718.0,0.091381]
[1725721605789,0.091377,54721.0,54720.0,0.002]
[1725721606499,0.091377,54721.0,54720.0,0.001]
[1725721607095,0.09138,54719.0,54718.0,0.001]
[1725721607301,0.091397,54709.0,54705.0,0.091402]
[1725721607496,0.2382,54708.0,54701.0,0.3663804]
[1725721607702,0.138599,54708.0,54701.0,0.3654204]
[1725721607900,0.138599,54708.0,54706.0,0.091402]
[1725721608113,0.138599,54708.0,54707.0,0.0914]
[1725721608704,0.281387,54715.0,54708.0,0.091397]
[1725721608904,0.280387,54715.0,54708.0,0.091397]
[1725721609113,0.091397,54709.0,54708.0,0.091397]
[1725721610213,0.09139,54713.0,54707.0,0.196]
[1725721610410,0.01827626,54716.0,54708.0,0.1424]
[1725721610705,0.3265,54721.0,54715.0,0.091385]
[1725721610898,0.091384,54717.0,54715.0,0.091385]
[1725721613200,0.091385,54716.0,54715.0,0.091385]
[1725721614300,0.094385,54716.0,54715.0,0.091385]
[1725721616505,0.098385,54716.0,54715.0,0.091385]
[1725721619918,0.097385,54716.0,54715.0,0.091385]
[1725721620103,0.096385,54716.0,54715.0,0.091385]
[1725721620701,0.091397,54711.0,54710.0,0.091395]
[1725721622703,0.091397,54711.0,54710.0,0.095395]
[1725721623310,0.091397,54711.0,54710.0,0.100395]
[1725721624005,0.091389,54714.0,54713.0,0.091389]
[1725721625510,0.091389,54714.0,54713.0,0.092389]
[1725721626518,0.091389,54714.0,54713.0,0.093389]
[1725721629115,0.091384,54717.0,54716.0,0.091384]
[1725721630319,0.093384,54717.0,54716.0,0.091384]
[1725721630718,0.096384,54717.0,54716.0,0.091384]
[1725721632422,0.096384,54717.0,54710.0,0.049]
[1725721632719,0.096384,54717.0,54709.0,0.01789973]
[1725721632720,0.091389,54714.0,54713.0,0.09139]
[1725721633922,0.091389,54714.0,54713.0,0.09239]
[1725721634123,0.091383,54717.0,54716.0,0.091384]
[1725721635923,0.093383,54717.0,54716.0,0.091384]
[1725721636122,0.002,54717.0,54716.0,0.091384]
[1725721636318,0.005,54717.0,54716.0,0.091384]
[1725721637433,0.096383,54717.0,54716.0,0.091384]
[1725721638522,0.096383,54717.0,54716.0,0.14620213]
[1725721638723,0.096383,54717.0,54716.0,0.091384]
[1725721639431,0.096383,54717.0,54716.0,0.14620213]
[1725721639823,0.005,54717.0,54716.0,0.14620213]
[1725721642324,0.005,54717.0,54716.0,0.091384]
[1725721645828,0.005,54717.0,54716.0,0.2557224]
[1725721646130,0.005,54717.0,54716.0,0.25580452]
[1725721646531,0.005,54717.0,54716.0,0.182769]
[1725721647045,0.005,54717.0,54716.0,0.091384]
[1725721651333,0.005,54717.0,54716.0,0.281384]
[1725721651533,0.005,54717.0,54716.0,0.372769]
[1725721651734,0.091372,54724.0,54723.0,0.091373]
[1725721652127,0.091367,54727.0,54726.0,0.091367]
[1725721653328,0.10935141,54727.0,54726.0,0.091367]
[1725721653921,0.11335141,54727.0,54726.0,0.092367]
[1725721654840,0.12035141,54727.0,54726.0,0.093367]
[1725721656538,0.011,54727.0,54726.0,0.283367]
[1725721656926,0.011,54727.0,54726.0,0.093367]
[1725721659839,0.011,54727.0,54726.0,0.092367]
[1725721660532,0.0462,54728.0,54727.0,0.091367]
[1725721660737,0.137565,54728.0,54727.0,0.091367]
[1725721660927,0.78436,54728.0,54722.0,0.091375]
[1725721661132,0.091373,54724.0,54718.0,0.20811462]
[1725721661340,0.091373,54724.0,54722.0,0.091374]
[1725721661741,0.090373,54724.0,54722.0,0.091374]
[1725721662245,0.091373,54723.0,54722.0,0.094374]
[1725721663827,0.091373,54723.0,54722.0,0.092374]
[1725721664841,0.091373,54723.0,54722.0,0.091374]
[1725721665534,0.091373,54723.0,54722.0,0.092374]
[1725721666540,0.091373,54723.0,54722.0,0.093374]
[1725721667247,0.091373,54723.0,54722.0,0.091374]
[1725721667834,0.0498,54726.0,54718.0,0.24476793]
[1725721667835,0.091379,54720.0,54718.0,0.24476793]
[1725721668142,0.1,54719.0,54717.0,0.091382]
[1725721668334,0.091382,54718.0,54717.0,0.091382]
[1725721668640,0.1472,54719.0,54718.0,0.091382]
[1725721669345,0.0472,54719.0,54718.0,0.091382]
[1725721669568,0.06733244,54726.0,54718.0,0.1]
[1725721669734,0.06733244,54726.0,54721.0,0.1]
[1725721669735,0.091371,54725.0,54721.0,0.1]
[1725721670045,0.091371,54725.0,54721.0,0.15476989]
[1725721670434,0.06733244,54726.0,54725.0,0.09137]
[1725721670630,0.091363,54729.0,54728.0,0.091365]
[1725721671035,0.091363,54729.0,54728.0,0.191365]
[1725721671636,0.10952979,54729.0,54728.0,0.191365]
[1725721671846,0.11452979,54729.0,54728.0,0.192365]
[1725721672049,0.11452979,54729.0,54728.0,0.092365]
[1725721672345,0.11952979,54729.0,54728.0,0.093365]
[1725721673544,0.3265,54751.0,54728.0,1.431525]
[1725721673736,4e-05,54755.0,54735.0,0.16438852]
[1725721674048,0.25544416,54768.0,54729.0,0.68735304]
[1725721674049,0.091294,54771.0,54757.0,0.091317]